fUST/lending_fUST_20241227
["ID","MTS","AMOUNT","RATE_DAILY","PERIOD"]
[346752750,1735263059907,-500.0,0.00013289,2]
[346752751,1735263059916,-500.0,0.00013397,2]
[346752752,1735263059927,-500.0,0.00013397,2]
[346752753,1735263059936,-3147.17,0.00013397,2]
[346752754,1735263059945,-2523.63,0.00013397,2]
[346752755,1735263059955,-638.53,0.00013397,2]
[346752756,1735263059965,-508.27,0.00013397,2]
[346752757,1735263059975,-500.0,0.00013398,2]
[346752758,1735263059984,-501.74,0.00013398,2]
[346752759,1735263059993,-500.0,0.00013398,2]
[346752760,1735263060003,-500.0,0.00013398,2]
[346752761,1735263060012,-242.75,0.00013398,2]
[346752762,1735263060021,-540.07,0.00013398,2]
[346752763,1735263060031,-524.4,0.00013398,2]
[346752765,1735263060040,-500.0,0.00013398,2]
[346752766,1735263060050,-717.58,0.00013398,2]
[346752767,1735263060060,-500.0,0.00013398,2]
[346752768,1735263060070,-502.52,0.00013398,2]
[346752769,1735263060080,-500.0,0.00013398,2]
[346752770,1735263060089,-500.0,0.00013398,2]
[346752771,1735263060099,-555.35,0.00013398,2]
[346752772,1735263060109,-650.09,0.00013398,2]
[346752773,1735263060118,-942.24,0.00013398,2]
[346752774,1735263060128,-511.10114807,0.00013398,2]
[346752775,1735263060138,-500.0,0.00013399,2]
[346752776,1735263060228,-500.0,0.00013399,2]
[346752777,1735263060238,-500.0,0.00013399,2]
[346752778,1735263060247,-8566.47003753,0.00013399,2]
[346752779,1735263060297,-159.77157364,0.00013399,2]
[346752780,1735263060610,-696.58838883,0.00013399,2]
[346752781,1735263060620,-141.07358144,0.000134,2]
[346752782,1735263122990,-500.0,9.728e-05,2]
[346752783,1735263123018,-231.05700933,9.728e-05,2]
[346752786,1735263275141,500.0,0.0002051,120]
[346752787,1735263400254,1931.0,0.00023,120]
[346752788,1735263609984,500.8188798,0.00023,120]
[346752789,1735263676566,259.2103864,8.935e-05,2]
[346752790,1735263762097,14551.7958023,8.865e-05,2]
[346752791,1735263894219,250.0,8.957e-05,2]
[346752792,1735263907915,1508.15,0.00023,120]
[346752793,1735263939268,222.0,8.98e-05,2]
[346752794,1735263947135,-250.0,9.047e-05,2]
[346752795,1735263947158,-110.0,9.139e-05,2]
[346752796,1735264026111,-140.0,9.139e-05,2]
[346752797,1735264026134,-300.0,9.725e-05,2]
[346752798,1735264026155,-300.0,9.725e-05,2]
[346752799,1735264026178,-500.0,9.726e-05,2]
[346752800,1735264026200,-504.71317424,9.726e-05,2]
[346752801,1735264026221,-501.75442397,9.726e-05,2]
[346752802,1735264026244,-63.34030308,9.726e-05,2]
[346752803,1735264035094,-314.67621108,9.629e-05,2]
[346752804,1735264045965,-303.12164228,9.629e-05,2]
[346752805,1735264049094,-279.43769213,9.629e-05,2]
[346752806,1735264093522,-522.19577586,9.629e-05,2]
[346752807,1735264093552,-300.0,9.725e-05,2]
[346752808,1735264093578,-300.0,9.725e-05,2]
[346752809,1735264093605,-379.43206465,9.726e-05,2]
[346752810,1735264093644,-58.70540127,9.726e-05,2]
[346752811,1735264093668,-500.98052566,9.726e-05,2]
[346752812,1735264093695,-503.128924,9.726e-05,2]
[346752813,1735264093721,-438.81298958,9.726e-05,2]
[346752814,1735264118266,-62.14095941,9.726e-05,2]
[346752815,1735264118293,-500.0,9.726e-05,2]
[346752816,1735264118322,-502.39286339,9.726e-05,2]
[346752817,1735264118348,-497.15913133,9.726e-05,2]
[346752818,1735264118380,-2.84086867,9.726e-05,2]
[346752819,1735264118405,-502.18538924,9.726e-05,2]
[346752820,1735264118431,-500.0,9.726e-05,2]
[346752821,1735264118457,-500.0,9.726e-05,2]
[346752822,1735264118484,-56.66669622,9.726e-05,2]
[346752823,1735264118522,-444.94202136,9.726e-05,2]
[346752824,1735264118551,-58.49490928,9.726e-05,2]
[346752825,1735264143346,-500.0,9.725e-05,2]
[346752826,1735264143376,-558.51509072,9.726e-05,2]
[346752827,1735264143404,-440.16923129,9.726e-05,2]
[346752828,1735264143435,-59.83076871,9.726e-05,2]
[346752829,1735264143462,-502.0360665,9.726e-05,2]
[346752830,1735264143487,-500.0,9.726e-05,2]
[346752831,1735264143512,-500.0,9.726e-05,2]
[346752832,1735264143538,-72.3625757,9.726e-05,2]
[346752833,1735264146117,-427.6374243,9.726e-05,2]
[346752834,1735264146138,-275.48855468,9.726e-05,2]
[346752835,1735264146160,-500.0,9.726e-05,2]
[346752836,1735264146181,-502.69550652,9.726e-05,2]
[346752837,1735264146202,-501.30819944,9.726e-05,2]
[346752838,1735264146224,-501.52885409,9.726e-05,2]
[346752839,1735264146244,-500.5417126,9.726e-05,2]
[346752840,1735264146265,-502.55117259,9.726e-05,2]
[346752841,1735264146285,-500.0,9.726e-05,2]
[346752842,1735264146307,-500.0,9.726e-05,2]
[346752843,1735264146329,-500.0,9.726e-05,2]
[346752844,1735264146349,-500.0,9.726e-05,2]
[346752845,1735264146370,-500.0,9.726e-05,2]
[346752846,1735264146390,-500.0,9.726e-05,2]
[346752847,1735264146411,-500.0,9.726e-05,2]
[346752848,1735264146431,-210.82711596,9.726e-05,2]
[346752849,1735264146453,-500.0,9.726e-05,2]
[346752850,1735264146474,-563.79710288,9.726e-05,2]
[346752851,1735264146496,-500.0,9.726e-05,2]
[346752852,1735264146518,-500.0,9.726e-05,2]
[346752853,1735264146539,-500.0,9.726e-05,2]
[346752854,1735264146560,-135.46854442,9.726e-05,2]
[346752855,1735264146588,-364.53145558,9.726e-05,2]
[346752856,1735264146609,-500.0,9.726e-05,2]
[346752857,1735264146629,-500.0,9.726e-05,2]
[346752858,1735264146649,-500.0,9.726e-05,2]
[346752859,1735264146669,-500.0,9.726e-05,2]
[346752860,1735264146690,-567.40950746,9.726e-05,2]
[346752861,1735264146710,-501.65713776,9.726e-05,2]
[346752862,1735264146731,-565.6051414,9.726e-05,2]
[346752863,1735264146752,-501.97824997,9.726e-05,2]
[346752864,1735264146772,-508.7452224,9.726e-05,2]
[346752865,1735264146794,-515.72536417,9.726e-05,2]
[346752866,1735264146815,-500.72007841,9.726e-05,2]
[346752867,1735264146837,-500.54534549,9.726e-05,2]
[346752868,1735264146858,-500.0,9.726e-05,2]
[346752869,1735264146878,-500.0,9.726e-05,2]
[346752870,1735264146899,-501.26242491,9.726e-05,2]
[346752871,1735264146920,-500.0,9.726e-05,2]
[346752872,1735264146943,-2707.29,9.726e-05,2]
[346752873,1735264146967,-500.0,9.726e-05,2]
[346752874,1735264146988,-500.0,9.726e-05,2]
[346752875,1735264147009,-243.29993674,9.726e-05,2]
[346752876,1735264147217,-256.63454551,9.726e-05,2]
[346752877,1735264147239,-500.0,9.726e-05,2]
[346752878,1735264147259,-502.05973686,9.726e-05,2]
[346752879,1735264147280,-501.41118534,9.726e-05,2]
[346752880,1735264147299,-500.0,9.726e-05,2]
[346752881,1735264147319,-500.50638857,9.726e-05,2]
[346752882,1735264147341,-501.02687306,9.726e-05,2]
[346752883,1735264147360,-500.63893206,9.726e-05,2]
[346752884,1735264147380,-501.0105163,9.726e-05,2]
[346752885,1735264147403,-1576.75,9.726e-05,2]
[346752886,1735264147424,-501.67893045,9.726e-05,2]
[346752887,1735264147444,-501.92949117,9.726e-05,2]
[346752888,1735264147465,-500.0,9.726e-05,2]
[346752889,1735264147486,-500.0,9.726e-05,2]
[346752890,1735264147507,-504.16400507,9.726e-05,2]
[346752891,1735264147530,-500.0,9.726e-05,2]
[346752892,1735264147553,-650.10505484,9.726e-05,2]
[346752893,1735264147577,-500.0,9.726e-05,2]
[346752894,1735264147596,-159.76995019,9.726e-05,2]
[346752895,1735264147620,-155.36058844,9.726e-05,2]
[346752897,1735264153153,-344.63941156,9.726e-05,2]
[346752898,1735264153178,-500.0,9.726e-05,2]
[346752899,1735264153200,-500.0,9.726e-05,2]
[346752900,1735264153222,-250.0,9.726e-05,2]
[346752901,1735264153245,-500.0,9.726e-05,2]
[346752902,1735264153269,-250.0,9.726e-05,2]
[346752903,1735264153292,-500.0,9.726e-05,2]
[346752904,1735264153313,-500.0,9.726e-05,2]
[346752905,1735264153336,-500.0,9.726e-05,2]
[346752906,1735264153358,-500.0,9.726e-05,2]
[346752907,1735264153379,-532.94100621,9.726e-05,2]
[346752908,1735264153401,-500.91007195,9.726e-05,2]
[346752909,1735264153422,-509.40068822,9.726e-05,2]
[346752910,1735264153444,-500.0,9.726e-05,2]
[346752911,1735264153466,-504.16517763,9.726e-05,2]
[346752912,1735264153488,-502.5982317,9.726e-05,2]
[346752913,1735264153509,-622.73078672,9.726e-05,2]
[346752914,1735264153531,-501.07787725,9.726e-05,2]
[346752915,1735264153553,-500.0,9.726e-05,2]
[346752916,1735264153575,-501.33483393,9.726e-05,2]
[346752917,1735264153607,-500.0,9.726e-05,2]
[346752918,1735264153632,-500.0,9.726e-05,2]
[346752919,1735264153655,-500.86871287,9.726e-05,2]
[346752920,1735264153678,-504.03083687,9.726e-05,2]
[346752921,1735264153701,-501.1716519,9.726e-05,2]
[346752922,1735264153725,-500.22858821,9.726e-05,2]
[346752923,1735264153748,-500.0,9.727e-05,2]
[346752924,1735264153770,-500.0,9.727e-05,2]
[346752925,1735264153807,-500.0,9.727e-05,2]
[346752926,1735264153833,-325.58413528,9.727e-05,2]
[346752927,1735264153856,-500.0,9.727e-05,2]
[346752928,1735264153879,-500.0,9.727e-05,2]
[346752929,1735264153904,-500.0,9.727e-05,2]
[346752930,1735264153927,-422.94498595,9.727e-05,2]
[346752931,1735264153952,-500.0,9.727e-05,2]
[346752932,1735264153978,-500.0,9.727e-05,2]
[346752933,1735264154002,-500.0,9.727e-05,2]
[346752934,1735264154157,-500.0,9.727e-05,2]
[346752935,1735264154179,-500.0,9.727e-05,2]
[346752936,1735264154202,-500.0,9.727e-05,2]
[346752937,1735264154223,-223.97587899,9.727e-05,2]
[346752938,1735264154245,-255.50589953,9.727e-05,2]
[346752939,1735264154268,-500.0,9.727e-05,2]
[346752940,1735264154291,-572.88,9.727e-05,2]
[346752941,1735264154313,-500.0,9.727e-05,2]
[346752942,1735264154341,-547.31,9.727e-05,2]
[346752943,1735264154362,-500.0,9.727e-05,2]
[346752944,1735264154383,-500.0,9.727e-05,2]
[346752945,1735264154406,-500.0,9.727e-05,2]
[346752946,1735264154428,-500.0,9.727e-05,2]
[346752947,1735264154452,-500.0,9.727e-05,2]
[346752948,1735264154474,-500.0,9.727e-05,2]
[346752949,1735264154495,-501.50717988,9.727e-05,2]
[346752950,1735264154516,-500.0,9.727e-05,2]
[346752951,1735264154537,-457.61573929,9.727e-05,2]
[346752952,1735264154558,-500.0,9.727e-05,2]
[346752953,1735264154581,-505.05879928,9.727e-05,2]
[346752954,1735264154602,-500.0,9.727e-05,2]
[346752955,1735264154623,-501.2980998,9.727e-05,2]
[346752956,1735264154644,-503.96161398,9.727e-05,2]
[346752957,1735264154668,-500.0,9.727e-05,2]
[346752958,1735264154693,-500.0,9.727e-05,2]
[346752959,1735264154718,-500.0,9.727e-05,2]
[346752960,1735264154741,-500.0,9.727e-05,2]
[346752961,1735264154763,-500.0,9.727e-05,2]
[346752962,1735264154784,-500.0,9.727e-05,2]
[346752963,1735264154806,-522.19,9.727e-05,2]
[346752964,1735264154827,-505.9230921,9.727e-05,2]
[346752965,1735264154849,-500.0,9.727e-05,2]
[346752966,1735264154871,-501.66638736,9.727e-05,2]
[346752967,1735264154891,-501.32372438,9.727e-05,2]
[346752968,1735264154913,-500.0,9.727e-05,2]
[346752969,1735264154935,-500.0,9.727e-05,2]
[346752970,1735264154956,-502.6846406,9.727e-05,2]
[346752971,1735264154982,-500.0,9.727e-05,2]
[346752972,1735264155003,-500.0,9.727e-05,2]
[346752973,1735264155025,-500.0,9.727e-05,2]
[346752974,1735264155047,-500.0,9.727e-05,2]
[346752975,1735264155069,-8424.46,9.727e-05,2]
[346752976,1735264155091,-503.63472708,9.727e-05,2]
[346752977,1735264155111,-505.45346836,9.727e-05,2]
[346752978,1735264155132,-500.0,9.727e-05,2]
[346752979,1735264155153,-500.0,9.727e-05,2]
[346752980,1735264155174,-500.0,9.727e-05,2]
[346752981,1735264155194,-500.0,9.727e-05,2]
[346752982,1735264155216,-500.0,9.727e-05,2]
[346752983,1735264155237,-500.0,9.727e-05,2]
[346752984,1735264155258,-500.0,9.727e-05,2]
[346752985,1735264155279,-500.67233622,9.727e-05,2]
[346752986,1735264155299,-500.0,9.727e-05,2]
[346752987,1735264155320,-500.0,9.727e-05,2]
[346752988,1735264155342,-502.41229806,9.727e-05,2]
[346752989,1735264155363,-504.52983926,9.727e-05,2]
[346752990,1735264155384,-501.9085925,9.727e-05,2]
[346752991,1735264155406,-500.0,9.727e-05,2]
[346752992,1735264155429,-500.0,9.727e-05,2]
[346752993,1735264155450,-500.0,9.727e-05,2]
[346752994,1735264155471,-500.0,9.727e-05,2]
[346752995,1735264155491,-500.0,9.727e-05,2]
[346752996,1735264155511,-619.57254265,9.727e-05,2]
[346752997,1735264155532,-501.88421758,9.728e-05,2]
[346752998,1735264155552,-505.00486196,9.728e-05,2]
[346752999,1735264155575,-500.30782346,9.728e-05,2]
[346753000,1735264155598,-501.10710923,9.728e-05,2]
[346753001,1735264155619,-502.05394083,9.728e-05,2]
[346753002,1735264155640,-500.0,9.728e-05,2]
[346753003,1735264155660,-568.95792687,9.728e-05,2]
[346753004,1735264155682,-503.86829391,9.728e-05,2]
[346753005,1735264155702,-500.77980982,9.728e-05,2]
[346753006,1735264155723,-506.24089583,9.728e-05,2]
[346753007,1735264155744,-502.18078475,9.728e-05,2]
[346753008,1735264155765,-504.0,9.728e-05,2]
[346753009,1735264155786,-501.25826636,9.728e-05,2]
[346753010,1735264155806,-256.82442991,9.728e-05,2]
[346753011,1735264159196,-500.0,9.726e-05,2]
[346753012,1735264159218,-500.0,9.727e-05,2]
[346753013,1735264159239,-245.68122396,9.728e-05,2]
[346753014,1735264159261,-500.0,9.728e-05,2]
[346753015,1735264159283,-500.0,9.728e-05,2]
[346753016,1735264159305,-501.30480539,9.728e-05,2]
[346753017,1735264159327,-500.0,9.728e-05,2]
[346753018,1735264159351,-501.53285767,9.728e-05,2]
[346753019,1735264159375,-503.36452834,9.728e-05,2]
[346753020,1735264159396,-504.043751,9.728e-05,2]
[346753021,1735264159418,-501.07249079,9.728e-05,2]
[346753022,1735264159439,-458.02393346,9.728e-05,2]
[346753023,1735264159458,-221.57313718,9.728e-05,2]
[346753024,1735264159479,-609.48613538,9.728e-05,2]
[346753025,1735264159499,-500.0,9.728e-05,2]
[346753026,1735264159518,-173.24312742,9.728e-05,2]
[346753027,1735264159539,-558.40527035,9.728e-05,2]
[346753028,1735264159559,-500.70766315,9.728e-05,2]
[346753029,1735264159579,-501.85290249,9.728e-05,2]
[346753030,1735264159600,-501.27295048,9.728e-05,2]
[346753031,1735264159620,-502.7621092,9.728e-05,2]
[346753032,1735264159642,-500.0,9.728e-05,2]
[346753033,1735264159663,-501.66515315,9.728e-05,2]
[346753034,1735264159683,-502.27930882,9.728e-05,2]
[346753035,1735264159704,-500.0,9.728e-05,2]
[346753036,1735264159725,-501.76165185,9.728e-05,2]
[346753037,1735264159746,-503.12888777,9.728e-05,2]
[346753038,1735264159766,-503.6905916,9.728e-05,2]
[346753039,1735264159786,-501.21704845,9.728e-05,2]
[346753040,1735264159806,-500.0,9.728e-05,2]
[346753041,1735264159826,-504.23931075,9.728e-05,2]
[346753042,1735264159848,-501.68152722,9.728e-05,2]
[346753043,1735264159869,-504.05274087,9.728e-05,2]
[346753044,1735264159889,-507.11894123,9.728e-05,2]
[346753045,1735264159910,-504.25281217,9.728e-05,2]
[346753046,1735264159930,-500.75640232,9.728e-05,2]
[346753047,1735264159951,-500.0,9.728e-05,2]
[346753048,1735264159975,-500.0,9.728e-05,2]
[346753049,1735264159996,-502.61595608,9.728e-05,2]
[346753050,1735264160019,-502.85787757,9.728e-05,2]
[346753051,1735264160042,-501.36959985,9.728e-05,2]
[346753052,1735264160067,-500.69896722,9.728e-05,2]
[346753053,1735264160092,-502.97333494,9.728e-05,2]
[346753054,1735264160113,-500.78168526,9.728e-05,2]
[346753055,1735264160134,-501.17492052,9.728e-05,2]
[346753056,1735264160156,-500.95938309,9.728e-05,2]
[346753057,1735264160178,-500.92989922,9.728e-05,2]
[346753058,1735264160200,-500.87239681,9.728e-05,2]
[346753059,1735264160220,-500.0,9.728e-05,2]
[346753060,1735264160241,-500.0,9.728e-05,2]
[346753061,1735264160262,-502.91889071,9.728e-05,2]
[346753062,1735264160282,-501.3453633,9.728e-05,2]
[346753063,1735264160304,-500.0,9.728e-05,2]
[346753064,1735264160325,-502.78210461,9.728e-05,2]
[346753065,1735264160349,-500.0,9.728e-05,2]
[346753066,1735264160375,-503.47198621,9.728e-05,2]
[346753067,1735264160396,-501.67519762,9.728e-05,2]
[346753068,1735264160418,-500.0,9.728e-05,2]
[346753069,1735264160439,-501.86881764,9.728e-05,2]
[346753070,1735264160460,-502.8937998,9.728e-05,2]
[346753071,1735264160481,-503.39948042,9.728e-05,2]
[346753072,1735264160503,-500.0,9.728e-05,2]
[346753073,1735264160523,-502.32747596,9.728e-05,2]
[346753074,1735264160546,-501.13285823,9.728e-05,2]
[346753075,1735264160568,-500.0,9.728e-05,2]
[346753076,1735264160591,-500.61200996,9.728e-05,2]
[346753077,1735264160613,-500.0,9.728e-05,2]
[346753078,1735264160635,-501.21032895,9.728e-05,2]
[346753079,1735264160656,-500.0,9.728e-05,2]
[346753080,1735264160766,-500.83001145,9.728e-05,2]
[346753081,1735264160787,-441.87651841,9.728e-05,2]
[346753082,1735264160809,-500.0,9.728e-05,2]
[346753083,1735264160830,-502.4903089,9.728e-05,2]
[346753084,1735264160856,-501.98691697,9.728e-05,2]
[346753085,1735264160877,-500.0,9.728e-05,2]
[346753086,1735264160899,-94.42586176,9.728e-05,2]
[346753087,1735264161101,-406.91733687,9.728e-05,2]
[346753088,1735264161121,-502.82749129,9.728e-05,2]
[346753089,1735264161142,-500.0,9.728e-05,2]
[346753090,1735264161168,-500.0,9.728e-05,2]
[346753091,1735264161189,-126.4185046,9.728e-05,2]
[346753092,1735264161387,-373.5814954,9.728e-05,2]
[346753093,1735264161432,-500.0,9.728e-05,2]
[346753094,1735264161476,-500.0,9.728e-05,2]
[346753095,1735264161519,-500.0,9.728e-05,2]
[346753096,1735264161561,-500.0,9.728e-05,2]
[346753097,1735264161601,-501.97013067,9.728e-05,2]
[346753098,1735264161640,-501.74541598,9.728e-05,2]
[346753099,1735264161680,-502.13853205,9.728e-05,2]
[346753100,1735264161717,-501.76456526,9.728e-05,2]
[346753101,1735264161753,-500.0,9.728e-05,2]
[346753102,1735264161796,-500.0,9.728e-05,2]
[346753103,1735264161844,-500.94202613,9.728e-05,2]
[346753104,1735264161886,-502.32516846,9.728e-05,2]
[346753105,1735264161925,-500.0,9.728e-05,2]
[346753106,1735264161967,-500.0,9.728e-05,2]
[346753107,1735264162009,-500.0,9.728e-05,2]
[346753108,1735264162049,-500.0,9.728e-05,2]
[346753109,1735264162097,-504.60239948,9.728e-05,2]
[346753110,1735264162140,-500.0,9.728e-05,2]
[346753111,1735264162178,-502.68005495,9.728e-05,2]
[346753112,1735264162218,-500.0,9.728e-05,2]
[346753113,1735264162260,-500.0,9.728e-05,2]
[346753114,1735264162298,-502.74795086,9.728e-05,2]
[346753115,1735264162337,-500.0,9.728e-05,2]
[346753116,1735264162376,-500.0,9.728e-05,2]
[346753117,1735264162414,-500.0,9.728e-05,2]
[346753118,1735264162457,-500.0,9.728e-05,2]
[346753119,1735264162499,-502.7817916,9.728e-05,2]
[346753120,1735264162540,-500.52844914,9.728e-05,2]
[346753121,1735264162579,-500.61689053,9.728e-05,2]
[346753122,1735264162616,-500.0,9.728e-05,2]
[346753123,1735264162653,-501.99339118,9.728e-05,2]
[346753124,1735264162698,-500.0,9.728e-05,2]
[346753125,1735264162740,-501.55488528,9.728e-05,2]
[346753126,1735264162782,-500.0,9.728e-05,2]
[346753127,1735264162822,-501.18155596,9.728e-05,2]
[346753128,1735264162865,-503.38760289,9.728e-05,2]
[346753129,1735264162906,-500.0,9.728e-05,2]
[346753130,1735264162945,-502.26212585,9.728e-05,2]
[346753131,1735264162985,-501.01467848,9.728e-05,2]
[346753132,1735264163027,-500.0,9.728e-05,2]
[346753133,1735264163066,-500.0,9.728e-05,2]
[346753134,1735264163106,-500.0,9.728e-05,2]
[346753135,1735264163149,-500.0,9.728e-05,2]
[346753136,1735264163193,-507.72780485,9.728e-05,2]
[346753137,1735264163235,-504.32997768,9.728e-05,2]
[346753138,1735264163278,-503.52487486,9.728e-05,2]
[346753139,1735264163322,-500.0,9.728e-05,2]
[346753140,1735264163367,-244.75750517,9.728e-05,2]
[346753141,1735264163412,-500.89231329,9.728e-05,2]
[346753142,1735264163458,-500.0,9.728e-05,2]
[346753143,1735264163505,-501.33209983,9.728e-05,2]
[346753144,1735264163548,-500.0,9.728e-05,2]
[346753145,1735264163591,-500.0,9.728e-05,2]
[346753146,1735264163631,-500.0,9.728e-05,2]
[346753147,1735264163672,-501.68999295,9.728e-05,2]
[346753148,1735264163714,-500.0,9.728e-05,2]
[346753149,1735264163758,-501.97774642,9.728e-05,2]
[346753150,1735264163802,-500.0,9.728e-05,2]
[346753151,1735264163845,-501.39295039,9.728e-05,2]
[346753152,1735264163888,-500.0,9.728e-05,2]
[346753153,1735264163932,-500.0,9.728e-05,2]
[346753154,1735264163977,-500.0,9.728e-05,2]
[346753155,1735264164021,-500.0,9.728e-05,2]
[346753156,1735264164066,-500.55645597,9.728e-05,2]
[346753157,1735264164225,-500.0,9.728e-05,2]
[346753158,1735264164273,-501.68283958,9.728e-05,2]
[346753159,1735264164319,-500.59192339,9.728e-05,2]
[346753160,1735264164363,-501.48394601,9.728e-05,2]
[346753161,1735264164409,-501.01487314,9.728e-05,2]
[346753162,1735264164453,-500.0,9.728e-05,2]
[346753163,1735264164496,-500.0,9.728e-05,2]
[346753164,1735264164540,-503.02573615,9.728e-05,2]
[346753165,1735264164582,-500.70908254,9.728e-05,2]
[346753166,1735264164623,-500.0,9.728e-05,2]
[346753167,1735264164664,-517.39897919,9.728e-05,2]
[346753168,1735264164706,-502.22687436,9.728e-05,2]
[346753169,1735264164750,-501.04704186,9.728e-05,2]
[346753170,1735264164792,-501.66154098,9.728e-05,2]
[346753171,1735264164835,-503.71649807,9.728e-05,2]
[346753172,1735264164880,-502.04132868,9.728e-05,2]
[346753173,1735264164928,-502.75122236,9.728e-05,2]
[346753174,1735264164974,-500.0,9.728e-05,2]
[346753175,1735264165019,-500.0,9.728e-05,2]
[346753176,1735264165061,-500.0,9.728e-05,2]
[346753177,1735264165103,-503.21282905,9.728e-05,2]
[346753178,1735264165148,-500.0,9.728e-05,2]
[346753179,1735264165189,-552.59601476,9.728e-05,2]
[346753180,1735264165231,-500.0,9.728e-05,2]
[346753181,1735264165274,-500.0,9.728e-05,2]
[346753182,1735264165319,-500.0,9.728e-05,2]
[346753183,1735264165362,-500.65314874,9.728e-05,2]
[346753184,1735264165409,-500.0,9.728e-05,2]
[346753185,1735264165454,-500.0,9.728e-05,2]
[346753186,1735264165497,-501.24275679,9.728e-05,2]
[346753187,1735264165539,-500.80504888,9.728e-05,2]
[346753188,1735264165581,-304.08876652,9.728e-05,2]
[346753189,1735264165624,-500.0,9.728e-05,2]
[346753190,1735264165666,-506.35162226,9.728e-05,2]
[346753191,1735264165707,-500.0,9.728e-05,2]
[346753192,1735264165748,-502.18242219,9.728e-05,2]
[346753193,1735264165792,-500.0,9.728e-05,2]
[346753194,1735264165836,-500.0,9.728e-05,2]
[346753195,1735264165877,-500.0,9.728e-05,2]
[346753196,1735264165917,-500.0,9.728e-05,2]
[346753197,1735264165957,-501.37533478,9.728e-05,2]
[346753198,1735264166000,-500.0,9.728e-05,2]
[346753199,1735264166044,-500.53270121,9.728e-05,2]
[346753200,1735264166088,-500.0,9.728e-05,2]
[346753201,1735264166127,-500.0,9.728e-05,2]
[346753202,1735264166165,-500.0,9.728e-05,2]
[346753203,1735264166205,-500.0,9.728e-05,2]
[346753204,1735264166244,-500.85173509,9.728e-05,2]
[346753205,1735264166286,-500.0,9.728e-05,2]
[346753206,1735264166328,-501.10051169,9.728e-05,2]
[346753207,1735264166369,-501.4931995,9.728e-05,2]
[346753208,1735264166408,-500.0,9.728e-05,2]
[346753209,1735264166448,-501.30820338,9.728e-05,2]
[346753210,1735264166487,-501.23960158,9.728e-05,2]
[346753211,1735264166524,-501.37604116,9.728e-05,2]
[346753212,1735264166562,-500.0,9.728e-05,2]
[346753213,1735264166600,-500.0,9.728e-05,2]
[346753214,1735264166638,-500.0,9.728e-05,2]
[346753215,1735264166677,-500.0,9.728e-05,2]
[346753216,1735264166714,-490.49883567,9.728e-05,2]
[346753217,1735264166752,-501.15273783,9.728e-05,2]
[346753218,1735264166791,-502.0924749,9.728e-05,2]
[346753219,1735264166832,-500.34990809,9.728e-05,2]
[346753220,1735264166873,-500.0,9.728e-05,2]
[346753221,1735264166914,-500.0,9.728e-05,2]
[346753222,1735264166953,-502.26881082,9.728e-05,2]
[346753223,1735264166994,-383.26643727,9.728e-05,2]
[346753224,1735264167037,-500.70743364,9.728e-05,2]
[346753225,1735264167080,-500.0,9.728e-05,2]
[346753226,1735264167123,-500.0,9.728e-05,2]
[346753227,1735264167163,-500.0,9.728e-05,2]
[346753228,1735264167202,-247.13254516,9.728e-05,2]
[346753229,1735264167242,-500.0,9.728e-05,2]
[346753230,1735264167281,-500.0,9.728e-05,2]
[346753231,1735264167321,-501.67109711,9.728e-05,2]
[346753232,1735264167360,-500.0,9.728e-05,2]
[346753233,1735264167400,-500.0,9.728e-05,2]
[346753234,1735264167442,-502.06056801,9.728e-05,2]
[346753235,1735264167487,-500.0,9.728e-05,2]
[346753236,1735264167530,-503.34171369,9.728e-05,2]
[346753237,1735264167655,-502.37609565,9.728e-05,2]
[346753238,1735264167699,-500.0,9.728e-05,2]
[346753239,1735264167745,-500.0,9.728e-05,2]
[346753240,1735264167788,-500.92878851,9.728e-05,2]
[346753241,1735264167832,-501.35574851,9.728e-05,2]
[346753242,1735264167876,-500.0,9.728e-05,2]
[346753243,1735264167917,-317.65258093,9.728e-05,2]
[346753244,1735264167957,-501.46235216,9.728e-05,2]
[346753245,1735264168003,-500.0,9.728e-05,2]
[346753246,1735264168048,-503.17181126,9.728e-05,2]
[346753247,1735264168091,-500.0,9.728e-05,2]
[346753248,1735264168132,-500.84560877,9.728e-05,2]
[346753249,1735264168171,-501.63389619,9.728e-05,2]
[346753250,1735264168210,-500.0,9.728e-05,2]
[346753251,1735264168249,-505.36973935,9.728e-05,2]
[346753252,1735264168287,-501.01089271,9.728e-05,2]
[346753253,1735264168323,-500.0,9.728e-05,2]